{"text_format":"2","workbook":"xlsx","n_sheets":3,"sheets":["Asym","Symm","Sheet3"],"not_rendered":{"charts":0,"images":0,"macros":0,"external_links":0,"defined_names":2,"comments":0,"pivot_tables":0},"unopened":[],"bounds":{"document_bytes":16777216,"sheet_cells":100000,"run_cost":"one","rows_first":2000,"rows_last":500,"rows_between":2000,"halvings":0,"cell_chars":16384,"cell_head_chars":4096},"cells_cut":0,"cells_raw":0,"read":"whole","date_system":"1900"}

{"sheet":"Asym","index":0,"n_rows":132,"n_cols":20,"rows_kept":132,"cut":false,"hidden":false,"merged":[]}
["COMP","names","Other","Superior_5","Inferior_5","Nasal_5","Temporal_5","Superior_10","Inferior_10","Nasal_10","Temporal_10","Superior_15","Inferior_15","Nasal_15","Temporal_15","Superior_20","Inferior_20","Nasal_20","Temporal_20","ntrues"]
["PRX","TPS vs RPM","SCN1_CN_TPS vs SCN1_CN_RPM",false,true,false,false,false,false,false,false,false,false,false,false,false,false,false,false,{"$f":"COUNTIF(D2:S2,TRUE)","v":1}]
["SCN","SCN1 vs SCN3","SCN1_CD_TPS vs SCN3_CD_TPS",false,false,false,false,false,false,false,false,false,false,false,false,false,false,false,false,{"$f":"COUNTIF(D3:S3,TRUE)","v":0}]
["PRX","TPS vs RPH","SCN1_CN_TPS vs SCN1_CN_RPH",false,false,true,true,false,false,false,false,true,false,false,false,false,false,false,false,{"$f":"COUNTIF(D4:S4,TRUE)","v":3}]
["SCN","SCN1 vs SCN3","SCN1_CD_NPS vs SCN3_CD_NPS",false,false,false,false,false,false,false,false,false,false,false,false,false,false,false,false,{"$f":"COUNTIF(D5:S5,TRUE)","v":0}]
["PRX","TPS vs RPH","SCN2_CD_TPS vs SCN2_CD_RPH",false,false,false,true,false,false,false,false,false,false,false,false,false,false,false,false,{"$f":"COUNTIF(D6:S6,TRUE)","v":1}]
["SCN","SCN1 vs SCN3","SCN1_CD_RPM vs SCN3_CD_RPM",false,false,false,false,false,false,false,false,false,false,false,false,false,false,false,false,{"$f":"COUNTIF(D7:S7,TRUE)","v":0}]
["PRX","TPS vs RPH","SCN3_CD_TPS vs SCN3_CD_RPH",false,false,false,true,false,false,false,false,false,false,false,false,false,false,false,false,{"$f":"COUNTIF(D8:S8,TRUE)","v":1}]
["SCN","SCN1 vs SCN3","SCN1_CD_RPH vs SCN3_CD_RPH",false,false,false,false,false,false,false,false,false,false,false,false,false,false,false,false,{"$f":"COUNTIF(D9:S9,TRUE)","v":0}]
["PRX","TPS vs RPH","SCN3_NN_TPS vs SCN3_NN_RPH",false,false,false,true,false,false,false,false,false,false,false,false,false,false,false,false,{"$f":"COUNTIF(D10:S10,TRUE)","v":1}]
["SCN","SCN1 vs SCN3","SCN1_CN_TPS vs SCN3_CN_TPS",false,false,false,false,false,false,false,false,false,false,false,false,false,false,false,false,{"$f":"COUNTIF(D11:S11,TRUE)","v":0}]
["PRX","TPS vs NPS","SCN2_CD_TPS vs SCN2_CD_NPS",false,false,false,true,false,false,false,false,false,false,false,false,false,false,false,false,{"$f":"COUNTIF(D12:S12,TRUE)","v":1}]
["SCN","SCN1 vs SCN3","SCN1_CN_NPS vs SCN3_CN_NPS",false,false,false,false,false,false,false,false,false,false,false,false,false,false,false,false,{"$f":"COUNTIF(D13:S13,TRUE)","v":0}]
["PRX","TPS vs NPS","SCN3_CD_TPS vs SCN3_CD_NPS",false,false,false,true,false,false,false,false,false,false,false,false,false,false,false,false,{"$f":"COUNTIF(D14:S14,TRUE)","v":1}]
["SCN","SCN1 vs SCN3","SCN1_CN_RPM vs SCN3_CN_RPM",false,false,false,false,false,false,false,false,false,false,false,false,false,false,false,false,{"$f":"COUNTIF(D15:S15,TRUE)","v":0}]
["PRX","TPS vs NPS","SCN3_NN_TPS vs SCN3_NN_NPS",false,false,false,true,false,false,false,false,false,false,false,false,false,false,false,false,{"$f":"COUNTIF(D16:S16,TRUE)","v":1}]
["SCN","SCN1 vs SCN3","SCN1_CN_RPH vs SCN3_CN_RPH",false,false,false,false,false,false,false,false,false,false,false,false,false,false,false,false,{"$f":"COUNTIF(D17:S17,TRUE)","v":0}]
["SCN","SCN2 vs SCN3","SCN2_CD_TPS vs SCN3_CD_TPS",false,false,false,true,false,true,false,true,false,true,true,true,false,false,true,true,{"$f":"COUNTIF(D18:S18,TRUE)","v":8}]
["SCN","SCN1 vs SCN3","SCN1_NN_TPS vs SCN3_NN_TPS",false,false,false,false,false,false,false,false,false,false,false,false,false,false,false,false,{"$f":"COUNTIF(D19:S19,TRUE)","v":0}]
["SCN","SCN2 vs SCN3","SCN2_CD_NPS vs SCN3_CD_NPS",true,false,true,false,false,false,true,true,false,false,true,true,false,false,true,true,{"$f":"COUNTIF(D20:S20,TRUE)","v":8}]
["SCN","SCN1 vs SCN3","SCN1_NN_NPS vs SCN3_NN_NPS",false,false,false,false,false,false,false,false,false,false,false,false,false,false,false,false,{"$f":"COUNTIF(D21:S21,TRUE)","v":0}]
["SCN","SCN1 vs SCN2","SCN1_NN_RPM vs SCN2_NN_RPM",false,false,false,false,false,false,false,false,false,false,false,false,false,false,false,false,{"$f":"COUNTIF(D22:S22,TRUE)","v":0}]
["SCN","SCN1 vs SCN3","SCN1_NN_RPM vs SCN3_NN_RPM",false,false,false,false,false,false,false,false,false,false,false,false,false,false,false,false,{"$f":"COUNTIF(D23:S23,TRUE)","v":0}]
["SCN","SCN2 vs SCN3","SCN2_CD_RPM vs SCN3_CD_RPM",true,true,true,true,false,false,false,true,false,false,false,true,false,false,true,true,{"$f":"COUNTIF(D24:S24,TRUE)","v":8}]
["SCN","SCN1 vs SCN3","SCN1_NN_RPH vs SCN3_NN_RPH",false,false,false,false,false,false,false,false,false,false,false,false,false,false,false,false,{"$f":"COUNTIF(D25:S25,TRUE)","v":0}]
["SCN","SCN2 vs SCN3","SCN2_CD_RPH vs SCN3_CD_RPH",false,false,false,false,false,false,false,true,false,false,false,true,false,false,true,true,{"$f":"COUNTIF(D26:S26,TRUE)","v":4}]
["SCN","SCN2 vs SCN3","SCN2_CN_TPS vs SCN3_CN_TPS",true,false,true,false,false,true,true,true,false,true,true,true,true,false,true,true,{"$f":"COUNTIF(D27:S27,TRUE)","v":11}]
["SCN","SCN2 vs SCN3","SCN2_CN_NPS vs SCN3_CN_NPS",false,false,false,false,false,false,false,true,false,false,false,true,false,false,true,true,{"$f":"COUNTIF(D28:S28,TRUE)","v":4}]
["SCN","SCN2 vs SCN3","SCN2_CN_RPM vs SCN3_CN_RPM",false,false,false,false,false,false,false,true,false,false,false,true,false,false,true,true,{"$f":"COUNTIF(D29:S29,TRUE)","v":4}]
["SCN","SCN2 vs SCN3","SCN2_CN_RPH vs SCN3_CN_RPH",false,false,false,false,false,false,false,true,false,false,true,true,false,false,true,true,{"$f":"COUNTIF(D30:S30,TRUE)","v":5}]
["SCN","SCN2 vs SCN3","SCN2_NN_TPS vs SCN3_NN_TPS",false,false,false,false,false,true,false,true,false,true,true,true,false,false,true,true,{"$f":"COUNTIF(D31:S31,TRUE)","v":7}]
["SCN","SCN2 vs SCN3","SCN2_NN_NPS vs SCN3_NN_NPS",false,false,false,false,false,false,false,true,false,false,false,true,false,false,true,true,{"$f":"COUNTIF(D32:S32,TRUE)","v":4}]
["SCN","SCN2 vs SCN3","SCN2_NN_RPM vs SCN3_NN_RPM",false,false,false,false,false,false,false,true,false,false,false,true,false,false,true,true,{"$f":"COUNTIF(D33:S33,TRUE)","v":4}]
["SCN","SCN2 vs SCN3","SCN2_NN_RPH vs SCN3_NN_RPH",false,false,false,false,false,false,false,false,false,false,false,false,false,false,true,true,{"$f":"COUNTIF(D34:S34,TRUE)","v":2}]
["SCN","SCN1 vs SCN2","SCN1_CD_TPS vs SCN2_CD_TPS",false,false,false,false,false,false,false,false,true,false,false,false,false,false,false,false,{"$f":"COUNTIF(D35:S35,TRUE)","v":1}]
["SCN","SCN1 vs SCN2","SCN1_CD_NPS vs SCN2_CD_NPS",false,false,false,false,false,false,false,false,true,false,false,false,false,false,false,false,{"$f":"COUNTIF(D36:S36,TRUE)","v":1}]
["SCN","SCN1 vs SCN2","SCN1_CD_RPM vs SCN2_CD_RPM",false,false,false,false,false,false,false,false,true,false,false,false,false,false,false,false,{"$f":"COUNTIF(D37:S37,TRUE)","v":1}]
["PRX","TPS vs NPS","SCN1_CD_TPS vs SCN1_CD_NPS",false,false,false,false,false,false,false,false,false,false,false,false,false,false,false,false,{"$f":"COUNTIF(D38:S38,TRUE)","v":0}]
["PRX","TPS vs RPM","SCN1_CD_TPS vs SCN1_CD_RPM",false,false,false,false,false,false,false,false,false,false,false,false,false,false,false,false,{"$f":"COUNTIF(D39:S39,TRUE)","v":0}]
["PRX","TPS vs RPH","SCN1_CD_TPS vs SCN1_CD_RPH",false,false,false,false,false,false,false,false,false,false,false,false,false,false,false,false,{"$f":"COUNTIF(D40:S40,TRUE)","v":0}]
["SCN","SCN1 vs SCN2","SCN1_CD_RPH vs SCN2_CD_RPH",false,false,false,false,false,false,false,false,true,false,false,false,false,false,false,false,{"$f":"COUNTIF(D41:S41,TRUE)","v":1}]
["SCN","SCN1 vs SCN2","SCN1_CN_TPS vs SCN2_CN_TPS",false,false,false,false,false,false,false,false,true,false,false,false,true,false,false,false,{"$f":"COUNTIF(D42:S42,TRUE)","v":2}]
["PRX","RPM vs RPH","SCN1_CD_RPM vs SCN1_CD_RPH",false,false,false,false,false,false,false,false,false,false,false,false,false,false,false,false,{"$f":"COUNTIF(D43:S43,TRUE)","v":0}]
["PRX","TPS vs NPS","SCN1_CN_TPS vs SCN1_CN_NPS",false,false,false,false,false,false,false,false,false,false,false,false,false,false,false,false,{"$f":"COUNTIF(D44:S44,TRUE)","v":0}]
["SCN","SCN1 vs SCN2","SCN1_CN_NPS vs SCN2_CN_NPS",false,false,false,false,false,false,false,false,true,false,false,false,false,false,false,false,{"$f":"COUNTIF(D45:S45,TRUE)","v":1}]
["SCN","SCN1 vs SCN2","SCN1_CN_RPM vs SCN2_CN_RPM",false,false,false,false,false,false,false,false,true,false,false,false,false,false,false,false,{"$f":"COUNTIF(D46:S46,TRUE)","v":1}]
["SCN","SCN1 vs SCN2","SCN1_CN_RPH vs SCN2_CN_RPH",false,false,false,false,false,false,false,false,true,false,false,false,false,false,false,false,{"$f":"COUNTIF(D47:S47,TRUE)","v":1}]
["SCN","SCN1 vs SCN2","SCN1_NN_TPS vs SCN2_NN_TPS",false,false,false,false,false,false,false,false,true,false,false,false,false,false,false,false,{"$f":"COUNTIF(D48:S48,TRUE)","v":1}]
["PRX","RPM vs RPH","SCN1_CN_RPM vs SCN1_CN_RPH",false,false,false,false,false,false,false,false,false,false,false,false,false,false,false,false,{"$f":"COUNTIF(D49:S49,TRUE)","v":0}]
["PRX","TPS vs NPS","SCN1_NN_TPS vs SCN1_NN_NPS",false,false,false,false,false,false,false,false,false,false,false,false,false,false,false,false,{"$f":"COUNTIF(D50:S50,TRUE)","v":0}]
["PRX","TPS vs RPM","SCN1_NN_TPS vs SCN1_NN_RPM",false,false,false,false,false,false,false,false,false,false,false,false,false,false,false,false,{"$f":"COUNTIF(D51:S51,TRUE)","v":0}]
["PRX","TPS vs RPH","SCN1_NN_TPS vs SCN1_NN_RPH",false,false,false,false,false,false,false,false,false,false,false,false,false,false,false,false,{"$f":"COUNTIF(D52:S52,TRUE)","v":0}]
["SCN","SCN1 vs SCN2","SCN1_NN_NPS vs SCN2_NN_NPS",false,false,false,false,false,false,false,false,true,false,false,false,false,false,false,false,{"$f":"COUNTIF(D53:S53,TRUE)","v":1}]
["SCN","SCN1 vs SCN2","SCN1_NN_RPH vs SCN2_NN_RPH",false,false,false,false,false,false,false,false,true,false,false,false,false,false,false,false,{"$f":"COUNTIF(D54:S54,TRUE)","v":1}]
["PRX","RPM vs RPH","SCN1_NN_RPM vs SCN1_NN_RPH",false,false,false,false,false,false,false,false,false,false,false,false,false,false,false,false,{"$f":"COUNTIF(D55:S55,TRUE)","v":0}]
["PRX","NPS vs RPM","SCN1_CD_NPS vs SCN1_CD_RPM",false,false,true,false,true,false,false,false,false,false,false,false,false,false,false,false,{"$f":"COUNTIF(D56:S56,TRUE)","v":2}]
["PRX","TPS vs RPM","SCN2_CD_TPS vs SCN2_CD_RPM",false,false,false,false,false,false,false,false,false,false,false,false,false,false,false,false,{"$f":"COUNTIF(D57:S57,TRUE)","v":0}]
["PRX","NPS vs RPM","SCN1_CN_NPS vs SCN1_CN_RPM",false,false,true,false,true,false,false,false,false,true,false,false,false,false,false,false,{"$f":"COUNTIF(D58:S58,TRUE)","v":3}]
["PRX","NPS vs RPM","SCN1_NN_NPS vs SCN1_NN_RPM",false,false,true,false,true,false,false,false,false,true,false,false,false,false,false,false,{"$f":"COUNTIF(D59:S59,TRUE)","v":3}]
["PRX","NPS vs RPM","SCN2_CD_NPS vs SCN2_CD_RPM",false,false,true,false,true,false,false,false,false,false,false,false,false,false,false,false,{"$f":"COUNTIF(D60:S60,TRUE)","v":2}]
["PRX","RPM vs RPH","SCN2_CD_RPM vs SCN2_CD_RPH",false,false,false,false,false,false,false,false,false,false,false,false,false,false,false,false,{"$f":"COUNTIF(D61:S61,TRUE)","v":0}]
["PRX","TPS vs NPS","SCN2_CN_TPS vs SCN2_CN_NPS",false,false,false,false,false,false,false,false,false,false,false,false,false,false,false,false,{"$f":"COUNTIF(D62:S62,TRUE)","v":0}]
["PRX","TPS vs RPM","SCN2_CN_TPS vs SCN2_CN_RPM",false,false,false,false,false,false,false,false,false,false,false,false,false,false,false,false,{"$f":"COUNTIF(D63:S63,TRUE)","v":0}]
["PRX","TPS vs RPH","SCN2_CN_TPS vs SCN2_CN_RPH",false,false,false,false,false,false,false,false,false,false,false,false,false,false,false,false,{"$f":"COUNTIF(D64:S64,TRUE)","v":0}]
["PRX","NPS vs RPM","SCN2_CN_NPS vs SCN2_CN_RPM",false,false,true,false,true,false,false,false,false,false,false,false,false,false,false,false,{"$f":"COUNTIF(D65:S65,TRUE)","v":2}]
["PRX","NPS vs RPM","SCN2_NN_NPS vs SCN2_NN_RPM",false,false,true,false,true,false,false,false,false,false,false,false,false,false,false,false,{"$f":"COUNTIF(D66:S66,TRUE)","v":2}]
["PRX","RPM vs RPH","SCN2_CN_RPM vs SCN2_CN_RPH",false,false,false,false,false,false,false,false,false,false,false,false,false,false,false,false,{"$f":"COUNTIF(D67:S67,TRUE)","v":0}]
["PRX","TPS vs NPS","SCN2_NN_TPS vs SCN2_NN_NPS",false,false,false,false,false,false,false,false,false,false,false,false,false,false,false,false,{"$f":"COUNTIF(D68:S68,TRUE)","v":0}]
["PRX","TPS vs RPM","SCN2_NN_TPS vs SCN2_NN_RPM",false,false,false,false,false,false,false,false,false,false,false,false,false,false,false,false,{"$f":"COUNTIF(D69:S69,TRUE)","v":0}]
["PRX","TPS vs RPH","SCN2_NN_TPS vs SCN2_NN_RPH",false,false,false,false,false,false,false,false,false,false,false,false,false,false,false,false,{"$f":"COUNTIF(D70:S70,TRUE)","v":0}]
["PRX","NPS vs RPM","SCN3_CD_NPS vs SCN3_CD_RPM",false,false,true,false,true,false,false,false,false,false,false,false,false,false,false,false,{"$f":"COUNTIF(D71:S71,TRUE)","v":2}]
["PRX","NPS vs RPM","SCN3_CN_NPS vs SCN3_CN_RPM",false,false,true,false,true,false,false,false,false,false,false,false,false,false,false,false,{"$f":"COUNTIF(D72:S72,TRUE)","v":2}]
["PRX","RPM vs RPH","SCN2_NN_RPM vs SCN2_NN_RPH",false,false,false,false,false,false,false,false,false,false,false,false,false,false,false,false,{"$f":"COUNTIF(D73:S73,TRUE)","v":0}]
["PRX","NPS vs RPM","SCN3_NN_NPS vs SCN3_NN_RPM",false,false,true,false,true,false,false,false,false,false,false,false,false,false,false,false,{"$f":"COUNTIF(D74:S74,TRUE)","v":2}]
["PRX","TPS vs RPM","SCN3_CD_TPS vs SCN3_CD_RPM",false,false,false,false,false,false,false,false,false,false,false,false,false,false,false,false,{"$f":"COUNTIF(D75:S75,TRUE)","v":0}]
["PRX","NPS vs RPH","SCN1_CD_NPS vs SCN1_CD_RPH",false,false,false,true,false,false,false,true,false,false,false,false,false,false,false,false,{"$f":"COUNTIF(D76:S76,TRUE)","v":2}]
["PRX","NPS vs RPH","SCN1_CN_NPS vs SCN1_CN_RPH",false,false,false,true,false,false,false,true,false,false,false,false,false,false,false,false,{"$f":"COUNTIF(D77:S77,TRUE)","v":2}]
["PRX","NPS vs RPH","SCN1_NN_NPS vs SCN1_NN_RPH",false,false,false,true,false,false,false,true,false,false,false,false,false,false,false,false,{"$f":"COUNTIF(D78:S78,TRUE)","v":2}]
["PRX","RPM vs RPH","SCN3_CD_RPM vs SCN3_CD_RPH",false,false,false,false,false,false,false,false,false,false,false,false,false,false,false,false,{"$f":"COUNTIF(D79:S79,TRUE)","v":0}]
["PRX","TPS vs NPS","SCN3_CN_TPS vs SCN3_CN_NPS",false,false,false,false,false,false,false,false,false,false,false,false,false,false,false,false,{"$f":"COUNTIF(D80:S80,TRUE)","v":0}]
["PRX","TPS vs RPM","SCN3_CN_TPS vs SCN3_CN_RPM",false,false,false,false,false,false,false,false,false,false,false,false,false,false,false,false,{"$f":"COUNTIF(D81:S81,TRUE)","v":0}]
["PRX","TPS vs RPH","SCN3_CN_TPS vs SCN3_CN_RPH",false,false,false,false,false,false,false,false,false,false,false,false,false,false,false,false,{"$f":"COUNTIF(D82:S82,TRUE)","v":0}]
["PRX","NPS vs RPH","SCN2_CD_NPS vs SCN2_CD_RPH",false,false,false,true,false,false,false,true,false,false,false,false,false,false,false,false,{"$f":"COUNTIF(D83:S83,TRUE)","v":2}]
["PRX","NPS vs RPH","SCN2_CN_NPS vs SCN2_CN_RPH",false,false,false,true,false,false,false,true,false,false,false,false,false,false,false,false,{"$f":"COUNTIF(D84:S84,TRUE)","v":2}]
["PRX","RPM vs RPH","SCN3_CN_RPM vs SCN3_CN_RPH",false,false,false,false,false,false,false,false,false,false,false,false,false,false,false,false,{"$f":"COUNTIF(D85:S85,TRUE)","v":0}]
["PRX","NPS vs RPH","SCN2_NN_NPS vs SCN2_NN_RPH",false,false,false,true,false,false,false,true,false,false,false,false,false,false,false,false,{"$f":"COUNTIF(D86:S86,TRUE)","v":2}]
["PRX","TPS vs RPM","SCN3_NN_TPS vs SCN3_NN_RPM",false,false,false,false,false,false,false,false,false,false,false,false,false,false,false,false,{"$f":"COUNTIF(D87:S87,TRUE)","v":0}]
["PRX","NPS vs RPH","SCN3_CD_NPS vs SCN3_CD_RPH",false,true,false,true,false,false,false,true,false,false,false,false,false,false,false,false,{"$f":"COUNTIF(D88:S88,TRUE)","v":3}]
["PRX","NPS vs RPH","SCN3_CN_NPS vs SCN3_CN_RPH",false,false,false,true,false,false,false,true,false,false,false,false,false,false,false,false,{"$f":"COUNTIF(D89:S89,TRUE)","v":2}]
["PRX","NPS vs RPH","SCN3_NN_NPS vs SCN3_NN_RPH",false,false,false,true,false,false,false,true,false,false,false,false,false,false,false,false,{"$f":"COUNTIF(D90:S90,TRUE)","v":2}]
["PRX","RPM vs RPH","SCN3_NN_RPM vs SCN3_NN_RPH",false,false,false,false,false,false,false,false,false,false,false,false,false,false,false,false,{"$f":"COUNTIF(D91:S91,TRUE)","v":0}]
["LNS","CD vs CN","SCN1_CD_TPS vs SCN1_CN_TPS",false,false,false,false,false,false,false,false,false,false,false,false,false,false,false,false,{"$f":"COUNTIF(D92:S92,TRUE)","v":0}]
["LNS","CD vs NN","SCN1_CD_TPS vs SCN1_NN_TPS",false,false,false,false,false,false,false,false,false,false,false,false,false,false,false,false,{"$f":"COUNTIF(D93:S93,TRUE)","v":0}]
["LNS","CD vs CN","SCN1_CD_NPS vs SCN1_CN_NPS",false,false,false,false,false,false,false,false,false,false,false,false,false,false,false,false,{"$f":"COUNTIF(D94:S94,TRUE)","v":0}]
["LNS","CD vs NN","SCN1_CD_NPS vs SCN1_NN_NPS",false,false,false,false,false,false,false,false,false,false,false,false,false,false,false,false,{"$f":"COUNTIF(D95:S95,TRUE)","v":0}]
["LNS","CD vs CN","SCN1_CD_RPM vs SCN1_CN_RPM",false,false,false,false,false,false,false,false,false,false,false,false,false,false,false,false,{"$f":"COUNTIF(D96:S96,TRUE)","v":0}]
["LNS","CD vs NN","SCN1_CD_RPM vs SCN1_NN_RPM",false,false,false,false,false,false,false,false,false,false,false,false,false,false,false,false,{"$f":"COUNTIF(D97:S97,TRUE)","v":0}]
["LNS","CD vs CN","SCN1_CD_RPH vs SCN1_CN_RPH",false,false,false,false,false,false,false,false,false,false,false,false,false,false,false,false,{"$f":"COUNTIF(D98:S98,TRUE)","v":0}]
["LNS","CD vs NN","SCN1_CD_RPH vs SCN1_NN_RPH",false,false,false,false,false,false,false,false,false,false,false,false,false,false,false,false,{"$f":"COUNTIF(D99:S99,TRUE)","v":0}]
["LNS","CN vs NN","SCN1_CN_TPS vs SCN1_NN_TPS",false,false,false,false,false,false,true,false,false,true,true,false,false,false,false,false,{"$f":"COUNTIF(D100:S100,TRUE)","v":3}]
["LNS","CN vs NN","SCN1_CN_NPS vs SCN1_NN_NPS",false,false,false,false,false,false,false,false,false,false,false,false,false,false,false,false,{"$f":"COUNTIF(D101:S101,TRUE)","v":0}]
["LNS","CN vs NN","SCN1_CN_RPM vs SCN1_NN_RPM",false,false,false,false,false,false,false,false,false,false,false,false,false,false,false,false,{"$f":"COUNTIF(D102:S102,TRUE)","v":0}]
["LNS","CN vs NN","SCN1_CN_RPH vs SCN1_NN_RPH",false,false,false,false,false,false,false,false,false,false,false,false,false,false,false,false,{"$f":"COUNTIF(D103:S103,TRUE)","v":0}]
["LNS","CD vs CN","SCN2_CD_TPS vs SCN2_CN_TPS",false,false,false,false,false,false,false,false,false,false,false,false,false,false,false,false,{"$f":"COUNTIF(D104:S104,TRUE)","v":0}]
["LNS","CD vs NN","SCN2_CD_TPS vs SCN2_NN_TPS",false,false,false,false,false,false,false,false,false,false,false,false,false,false,false,false,{"$f":"COUNTIF(D105:S105,TRUE)","v":0}]
["LNS","CD vs CN","SCN2_CD_NPS vs SCN2_CN_NPS",false,false,false,false,false,false,false,false,false,false,false,false,false,false,false,false,{"$f":"COUNTIF(D106:S106,TRUE)","v":0}]
["LNS","CD vs NN","SCN2_CD_NPS vs SCN2_NN_NPS",false,false,false,false,false,false,false,false,false,false,false,false,false,false,false,false,{"$f":"COUNTIF(D107:S107,TRUE)","v":0}]
["LNS","CD vs CN","SCN2_CD_RPM vs SCN2_CN_RPM",false,false,false,false,false,false,false,false,false,false,false,false,false,false,false,false,{"$f":"COUNTIF(D108:S108,TRUE)","v":0}]
["LNS","CD vs NN","SCN2_CD_RPM vs SCN2_NN_RPM",false,false,false,false,false,false,false,false,false,false,false,false,false,false,false,false,{"$f":"COUNTIF(D109:S109,TRUE)","v":0}]
["LNS","CD vs CN","SCN2_CD_RPH vs SCN2_CN_RPH",false,false,false,false,false,false,false,false,false,false,false,false,false,false,false,false,{"$f":"COUNTIF(D110:S110,TRUE)","v":0}]
["LNS","CD vs NN","SCN2_CD_RPH vs SCN2_NN_RPH",false,false,false,false,false,false,false,false,false,false,false,false,false,false,false,false,{"$f":"COUNTIF(D111:S111,TRUE)","v":0}]
["LNS","CN vs NN","SCN2_CN_TPS vs SCN2_NN_TPS",false,false,false,false,false,true,true,false,false,true,true,false,false,false,false,false,{"$f":"COUNTIF(D112:S112,TRUE)","v":4}]
["LNS","CN vs NN","SCN2_CN_NPS vs SCN2_NN_NPS",false,false,false,false,false,false,false,false,false,true,false,false,false,false,false,false,{"$f":"COUNTIF(D113:S113,TRUE)","v":1}]
["LNS","CN vs NN","SCN2_CN_RPM vs SCN2_NN_RPM",false,false,false,false,false,false,false,false,false,false,false,false,false,false,false,false,{"$f":"COUNTIF(D114:S114,TRUE)","v":0}]
["LNS","CN vs NN","SCN2_CN_RPH vs SCN2_NN_RPH",false,false,false,false,false,false,false,false,false,false,false,false,false,false,false,false,{"$f":"COUNTIF(D115:S115,TRUE)","v":0}]
["LNS","CD vs CN","SCN3_CD_TPS vs SCN3_CN_TPS",false,false,false,false,false,false,false,false,false,false,false,false,false,false,false,false,{"$f":"COUNTIF(D116:S116,TRUE)","v":0}]
["LNS","CD vs NN","SCN3_CD_TPS vs SCN3_NN_TPS",false,false,false,false,false,false,false,false,false,false,false,false,false,false,false,false,{"$f":"COUNTIF(D117:S117,TRUE)","v":0}]
["LNS","CD vs CN","SCN3_CD_NPS vs SCN3_CN_NPS",false,false,false,false,false,false,false,false,false,false,false,false,false,false,false,false,{"$f":"COUNTIF(D118:S118,TRUE)","v":0}]
["LNS","CD vs NN","SCN3_CD_NPS vs SCN3_NN_NPS",false,false,false,false,false,false,false,false,false,false,false,false,false,false,false,false,{"$f":"COUNTIF(D119:S119,TRUE)","v":0}]
["LNS","CD vs CN","SCN3_CD_RPM vs SCN3_CN_RPM",false,false,false,false,false,false,false,false,false,false,false,false,false,false,false,false,{"$f":"COUNTIF(D120:S120,TRUE)","v":0}]
["LNS","CD vs NN","SCN3_CD_RPM vs SCN3_NN_RPM",false,false,false,false,false,false,false,false,false,false,false,false,false,false,false,false,{"$f":"COUNTIF(D121:S121,TRUE)","v":0}]
["LNS","CD vs CN","SCN3_CD_RPH vs SCN3_CN_RPH",false,false,false,false,false,false,false,false,false,false,false,false,false,false,false,false,{"$f":"COUNTIF(D122:S122,TRUE)","v":0}]
["LNS","CD vs NN","SCN3_CD_RPH vs SCN3_NN_RPH",false,false,false,false,false,false,false,false,false,false,false,false,false,false,false,false,{"$f":"COUNTIF(D123:S123,TRUE)","v":0}]
["LNS","CN vs NN","SCN3_CN_TPS vs SCN3_NN_TPS",false,false,false,false,false,true,true,false,false,true,true,false,false,false,false,false,{"$f":"COUNTIF(D124:S124,TRUE)","v":4}]
["LNS","CN vs NN","SCN3_CN_NPS vs SCN3_NN_NPS",false,false,false,false,false,false,false,false,false,true,false,false,false,false,false,false,{"$f":"COUNTIF(D125:S125,TRUE)","v":1}]
["LNS","CN vs NN","SCN3_CN_RPM vs SCN3_NN_RPM",false,false,false,false,false,false,false,false,false,false,false,false,false,false,false,false,{"$f":"COUNTIF(D126:S126,TRUE)","v":0}]
["LNS","CN vs NN","SCN3_CN_RPH vs SCN3_NN_RPH",false,false,false,false,false,false,false,false,false,false,false,false,false,false,false,false,0]
[]
[null,"SCN",null,{"$f":"COUNTIF(D2:D37,TRUE)","v":3},{"$f":"COUNTIF(E2:E37,TRUE)","v":2},4,9,0,3,2,11,4,3,5,11,1,0,12,12]
[null,"PRX",null,{"$f":"COUNTIF(D38:D91,TRUE)","v":0},{"$f":"COUNTIF(E38:E91,TRUE)","v":1},9,9,9,0,0,9,8,2,0,0,1,0,0,0]
[null,"LNS",null,{"$f":"COUNTIF(D92:D127,TRUE)","v":0},{"$f":"COUNTIF(E92:E127,TRUE)","v":0},0,0,0,2,3,0,0,5,3,0,0,0,0,0]
[null,null,null,{"$f":"COUNTIF(D2:D127,TRUE)","v":3},{"$f":"COUNTIF(E2:E127,TRUE)","v":3},13,18,9,5,5,20,12,10,8,11,2,0,12,12]

{"sheet":"Symm","index":1,"n_rows":133,"n_cols":20,"rows_kept":133,"cut":false,"hidden":false,"merged":[]}
["COMP","names","Other","Superior_5","Inferior_5","Nasal_5","Temporal_5","Superior_10","Inferior_10","Nasal_10","Temporal_10","Superior_15","Inferior_15","Nasal_15","Temporal_15","Superior_20","Inferior_20","Nasal_20","Temporal_20","nutr"]
["PRX","NPS vs RPH","SCN1_CD_NPS vs SCN1_CD_RPH",false,true,false,true,false,false,false,true,false,false,false,false,false,false,false,false,{"$f":"COUNTIF(D2:S2,TRUE)","v":3}]
["PRX","NPS vs RPH","SCN1_CN_NPS vs SCN1_CN_RPH",false,false,false,true,false,false,false,true,false,false,false,false,false,false,false,false,{"$f":"COUNTIF(D3:S3,TRUE)","v":2}]
["PRX","NPS vs RPH","SCN1_NN_NPS vs SCN1_NN_RPH",false,false,false,true,false,false,false,true,false,false,false,false,false,false,false,false,{"$f":"COUNTIF(D4:S4,TRUE)","v":2}]
["SCN","SCN1 vs SCN3","SCN1_CD_NPS vs SCN3_CD_NPS",false,false,false,false,false,false,false,false,false,false,false,false,false,false,false,false,{"$f":"COUNTIF(D5:S5,TRUE)","v":0}]
["PRX","NPS vs RPH","SCN2_CD_NPS vs SCN2_CD_RPH",false,false,false,true,false,false,false,true,false,false,false,false,false,false,false,false,{"$f":"COUNTIF(D6:S6,TRUE)","v":2}]
["SCN","SCN1 vs SCN3","SCN1_CD_RPM vs SCN3_CD_RPM",false,false,false,false,false,false,false,false,false,false,false,false,false,false,false,false,{"$f":"COUNTIF(D7:S7,TRUE)","v":0}]
["PRX","NPS vs RPH","SCN2_CN_NPS vs SCN2_CN_RPH",false,false,false,true,false,false,false,true,false,false,false,false,false,false,false,false,{"$f":"COUNTIF(D8:S8,TRUE)","v":2}]
["SCN","SCN1 vs SCN3","SCN1_CD_RPH vs SCN3_CD_RPH",false,false,false,false,false,false,false,false,false,false,false,false,false,false,false,false,{"$f":"COUNTIF(D9:S9,TRUE)","v":0}]
["PRX","NPS vs RPH","SCN2_NN_NPS vs SCN2_NN_RPH",false,false,false,true,false,false,false,true,false,false,false,false,false,false,false,false,{"$f":"COUNTIF(D10:S10,TRUE)","v":2}]
["SCN","SCN1 vs SCN3","SCN1_CN_TPS vs SCN3_CN_TPS",false,false,false,false,false,false,false,false,false,false,false,false,false,false,false,false,{"$f":"COUNTIF(D11:S11,TRUE)","v":0}]
["PRX","NPS vs RPH","SCN3_CD_NPS vs SCN3_CD_RPH",false,false,false,true,false,false,false,true,false,false,false,false,false,false,false,false,{"$f":"COUNTIF(D12:S12,TRUE)","v":2}]
["SCN","SCN1 vs SCN3","SCN1_CN_NPS vs SCN3_CN_NPS",false,false,false,false,false,false,false,false,false,false,false,false,false,false,false,false,{"$f":"COUNTIF(D13:S13,TRUE)","v":0}]
["PRX","NPS vs RPH","SCN3_CN_NPS vs SCN3_CN_RPH",false,false,false,true,false,false,false,true,false,false,false,false,false,false,false,false,{"$f":"COUNTIF(D14:S14,TRUE)","v":2}]
["SCN","SCN1 vs SCN3","SCN1_CN_RPM vs SCN3_CN_RPM",false,false,false,false,false,false,false,false,false,false,false,false,false,false,false,false,{"$f":"COUNTIF(D15:S15,TRUE)","v":0}]
["PRX","NPS vs RPH","SCN3_NN_NPS vs SCN3_NN_RPH",false,false,false,true,false,false,false,true,false,false,false,false,false,false,false,false,{"$f":"COUNTIF(D16:S16,TRUE)","v":2}]
["SCN","SCN1 vs SCN3","SCN1_CN_RPH vs SCN3_CN_RPH",false,false,false,false,false,false,false,false,false,false,false,false,false,false,false,false,{"$f":"COUNTIF(D17:S17,TRUE)","v":0}]
["PRX","NPS vs RPM","SCN1_CD_NPS vs SCN1_CD_RPM",false,false,true,false,true,false,false,false,false,true,false,false,false,false,false,false,{"$f":"COUNTIF(D18:S18,TRUE)","v":3}]
["SCN","SCN1 vs SCN3","SCN1_NN_TPS vs SCN3_NN_TPS",false,false,false,false,false,false,false,false,false,false,false,false,false,false,false,false,{"$f":"COUNTIF(D19:S19,TRUE)","v":0}]
["PRX","NPS vs RPM","SCN1_CN_NPS vs SCN1_CN_RPM",false,false,true,false,true,false,false,false,false,true,false,false,false,false,false,false,{"$f":"COUNTIF(D20:S20,TRUE)","v":3}]
["SCN","SCN1 vs SCN3","SCN1_NN_NPS vs SCN3_NN_NPS",false,false,false,false,false,false,false,false,false,false,false,false,false,false,false,false,{"$f":"COUNTIF(D21:S21,TRUE)","v":0}]
["PRX","NPS vs RPM","SCN1_NN_NPS vs SCN1_NN_RPM",false,false,true,false,true,false,false,false,false,true,false,false,false,false,false,false,{"$f":"COUNTIF(D22:S22,TRUE)","v":3}]
["SCN","SCN1 vs SCN3","SCN1_NN_RPM vs SCN3_NN_RPM",false,false,false,false,false,false,false,false,false,false,false,false,false,false,false,false,{"$f":"COUNTIF(D23:S23,TRUE)","v":0}]
["PRX","NPS vs RPM","SCN2_CD_NPS vs SCN2_CD_RPM",false,false,true,false,true,false,false,false,false,false,false,false,false,false,false,false,{"$f":"COUNTIF(D24:S24,TRUE)","v":2}]
["SCN","SCN1 vs SCN3","SCN1_NN_RPH vs SCN3_NN_RPH",false,false,false,false,false,false,false,false,false,false,false,false,false,false,false,false,{"$f":"COUNTIF(D25:S25,TRUE)","v":0}]
["PRX","NPS vs RPM","SCN2_CN_NPS vs SCN2_CN_RPM",false,false,true,false,true,false,false,false,false,false,false,false,false,false,false,false,{"$f":"COUNTIF(D26:S26,TRUE)","v":2}]
["PRX","NPS vs RPM","SCN2_NN_NPS vs SCN2_NN_RPM",false,false,true,false,true,false,false,false,false,false,false,false,false,false,false,false,{"$f":"COUNTIF(D27:S27,TRUE)","v":2}]
["PRX","NPS vs RPM","SCN3_CD_NPS vs SCN3_CD_RPM",false,false,true,false,true,false,false,false,false,false,false,false,false,false,false,false,{"$f":"COUNTIF(D28:S28,TRUE)","v":2}]
["PRX","NPS vs RPM","SCN3_CN_NPS vs SCN3_CN_RPM",false,false,true,false,true,false,false,false,false,false,false,false,false,false,false,false,{"$f":"COUNTIF(D29:S29,TRUE)","v":2}]
["PRX","NPS vs RPM","SCN3_NN_NPS vs SCN3_NN_RPM",false,false,true,false,true,false,false,false,false,false,false,false,false,false,false,false,{"$f":"COUNTIF(D30:S30,TRUE)","v":2}]
["SCN","SCN1 vs SCN2","SCN1_CD_TPS vs SCN2_CD_TPS",false,false,false,false,false,false,false,false,true,false,false,false,true,false,false,false,{"$f":"COUNTIF(D31:S31,TRUE)","v":2}]
["SCN","SCN1 vs SCN2","SCN1_CD_NPS vs SCN2_CD_NPS",false,false,false,false,false,false,false,false,true,false,false,false,false,false,false,false,{"$f":"COUNTIF(D32:S32,TRUE)","v":1}]
["SCN","SCN1 vs SCN2","SCN1_CD_RPM vs SCN2_CD_RPM",false,false,false,false,false,false,false,false,true,false,false,false,false,false,false,false,{"$f":"COUNTIF(D33:S33,TRUE)","v":1}]
["SCN","SCN1 vs SCN2","SCN1_CD_RPH vs SCN2_CD_RPH",false,false,false,false,false,false,false,false,true,false,false,false,false,false,false,false,{"$f":"COUNTIF(D34:S34,TRUE)","v":1}]
["SCN","SCN1 vs SCN2","SCN1_CN_TPS vs SCN2_CN_TPS",false,false,false,false,false,false,false,false,true,false,false,true,false,false,false,false,{"$f":"COUNTIF(D35:S35,TRUE)","v":2}]
["SCN","SCN1 vs SCN2","SCN1_CN_NPS vs SCN2_CN_NPS",false,false,false,false,false,false,false,false,true,false,false,false,false,false,false,false,{"$f":"COUNTIF(D36:S36,TRUE)","v":1}]
["SCN","SCN1 vs SCN2","SCN1_CN_RPM vs SCN2_CN_RPM",false,false,false,false,false,false,false,false,true,false,false,false,false,false,false,false,{"$f":"COUNTIF(D37:S37,TRUE)","v":1}]
["SCN","SCN1 vs SCN2","SCN1_CN_RPH vs SCN2_CN_RPH",false,false,false,false,false,false,false,false,true,false,false,false,false,false,false,false,{"$f":"COUNTIF(D38:S38,TRUE)","v":1}]
["PRX","TPS vs RPM","SCN1_CD_TPS vs SCN1_CD_RPM",false,false,false,false,false,false,false,false,false,false,false,false,false,false,false,false,{"$f":"COUNTIF(D39:S39,TRUE)","v":0}]
["SCN","SCN1 vs SCN2","SCN1_NN_TPS vs SCN2_NN_TPS",false,false,false,false,false,false,false,false,true,false,false,false,false,false,false,false,{"$f":"COUNTIF(D40:S40,TRUE)","v":1}]
["SCN","SCN1 vs SCN2","SCN1_NN_NPS vs SCN2_NN_NPS",false,false,false,false,false,false,false,false,true,false,false,false,false,false,false,false,{"$f":"COUNTIF(D41:S41,TRUE)","v":1}]
["SCN","SCN1 vs SCN2","SCN1_NN_RPM vs SCN2_NN_RPM",false,false,false,false,false,false,false,false,true,false,false,false,false,false,false,false,{"$f":"COUNTIF(D42:S42,TRUE)","v":1}]
["PRX","RPM vs RPH","SCN1_CD_RPM vs SCN1_CD_RPH",false,false,false,false,false,false,false,false,false,false,false,false,false,false,false,false,{"$f":"COUNTIF(D43:S43,TRUE)","v":0}]
["PRX","TPS vs NPS","SCN1_CN_TPS vs SCN1_CN_NPS",false,false,false,false,false,false,false,false,false,false,false,false,false,false,false,false,{"$f":"COUNTIF(D44:S44,TRUE)","v":0}]
["PRX","TPS vs RPM","SCN1_CN_TPS vs SCN1_CN_RPM",false,false,false,false,false,false,false,false,false,false,false,false,false,false,false,false,{"$f":"COUNTIF(D45:S45,TRUE)","v":0}]
["PRX","TPS vs RPH","SCN1_CN_TPS vs SCN1_CN_RPH",false,false,false,false,false,false,false,false,false,false,false,false,false,false,false,false,{"$f":"COUNTIF(D46:S46,TRUE)","v":0}]
["SCN","SCN1 vs SCN2","SCN1_NN_RPH vs SCN2_NN_RPH",false,false,false,false,false,false,false,false,true,false,false,false,false,false,false,false,{"$f":"COUNTIF(D47:S47,TRUE)","v":1}]
["SCN","SCN1 vs SCN3","SCN1_CD_TPS vs SCN3_CD_TPS",false,false,false,false,false,false,false,false,true,false,false,false,false,false,false,false,{"$f":"COUNTIF(D48:S48,TRUE)","v":1}]
["PRX","RPM vs RPH","SCN1_CN_RPM vs SCN1_CN_RPH",false,false,false,false,false,false,false,false,false,false,false,false,false,false,false,false,{"$f":"COUNTIF(D49:S49,TRUE)","v":0}]
["PRX","TPS vs NPS","SCN1_NN_TPS vs SCN1_NN_NPS",false,false,false,false,false,false,false,false,false,false,false,false,false,false,false,false,{"$f":"COUNTIF(D50:S50,TRUE)","v":0}]
["PRX","TPS vs RPM","SCN1_NN_TPS vs SCN1_NN_RPM",false,false,false,false,false,false,false,false,false,false,false,false,false,false,false,false,{"$f":"COUNTIF(D51:S51,TRUE)","v":0}]
["PRX","TPS vs RPH","SCN1_NN_TPS vs SCN1_NN_RPH",false,false,false,false,false,false,false,false,false,false,false,false,false,false,false,false,{"$f":"COUNTIF(D52:S52,TRUE)","v":0}]
["SCN","SCN2 vs SCN3","SCN2_CD_TPS vs SCN3_CD_TPS",true,false,true,false,true,false,true,true,true,false,true,true,true,false,true,true,{"$f":"COUNTIF(D53:S53,TRUE)","v":11}]
["SCN","SCN2 vs SCN3","SCN2_CD_NPS vs SCN3_CD_NPS",false,false,false,false,false,true,true,true,false,true,true,true,false,false,true,true,{"$f":"COUNTIF(D54:S54,TRUE)","v":8}]
["PRX","RPM vs RPH","SCN1_NN_RPM vs SCN1_NN_RPH",false,false,false,false,false,false,false,false,false,false,false,false,false,false,false,false,{"$f":"COUNTIF(D55:S55,TRUE)","v":0}]
["PRX","TPS vs NPS","SCN2_CD_TPS vs SCN2_CD_NPS",false,false,false,false,false,false,false,false,false,false,false,false,false,false,false,false,{"$f":"COUNTIF(D56:S56,TRUE)","v":0}]
["PRX","TPS vs RPM","SCN2_CD_TPS vs SCN2_CD_RPM",false,false,false,false,false,false,false,false,false,false,false,false,false,false,false,false,{"$f":"COUNTIF(D57:S57,TRUE)","v":0}]
["PRX","TPS vs RPH","SCN2_CD_TPS vs SCN2_CD_RPH",false,false,false,false,false,false,false,false,false,false,false,false,false,false,false,false,{"$f":"COUNTIF(D58:S58,TRUE)","v":0}]
["SCN","SCN2 vs SCN3","SCN2_CD_RPM vs SCN3_CD_RPM",false,false,false,false,false,true,true,true,false,true,true,true,false,false,true,true,{"$f":"COUNTIF(D59:S59,TRUE)","v":8}]
["SCN","SCN2 vs SCN3","SCN2_CD_RPH vs SCN3_CD_RPH",false,false,false,false,true,false,true,true,false,true,true,true,false,false,true,true,{"$f":"COUNTIF(D60:S60,TRUE)","v":8}]
["PRX","RPM vs RPH","SCN2_CD_RPM vs SCN2_CD_RPH",false,false,false,false,false,false,false,false,false,false,false,false,false,false,false,false,{"$f":"COUNTIF(D61:S61,TRUE)","v":0}]
["PRX","TPS vs NPS","SCN2_CN_TPS vs SCN2_CN_NPS",false,false,false,false,false,false,false,false,false,false,false,false,false,false,false,false,{"$f":"COUNTIF(D62:S62,TRUE)","v":0}]
["PRX","TPS vs RPM","SCN2_CN_TPS vs SCN2_CN_RPM",false,false,false,false,false,false,false,false,false,false,false,false,false,false,false,false,{"$f":"COUNTIF(D63:S63,TRUE)","v":0}]
["PRX","TPS vs RPH","SCN2_CN_TPS vs SCN2_CN_RPH",false,false,false,false,false,false,false,false,false,false,false,false,false,false,false,false,{"$f":"COUNTIF(D64:S64,TRUE)","v":0}]
["SCN","SCN2 vs SCN3","SCN2_CN_TPS vs SCN3_CN_TPS",false,false,false,false,false,true,true,true,false,true,true,true,true,true,true,true,{"$f":"COUNTIF(D65:S65,TRUE)","v":10}]
["SCN","SCN2 vs SCN3","SCN2_CN_NPS vs SCN3_CN_NPS",false,false,true,false,true,false,true,true,false,true,true,true,false,false,true,true,{"$f":"COUNTIF(D66:S66,TRUE)","v":9}]
["PRX","RPM vs RPH","SCN2_CN_RPM vs SCN2_CN_RPH",false,false,false,false,false,false,false,false,false,false,false,false,false,false,false,false,{"$f":"COUNTIF(D67:S67,TRUE)","v":0}]
["PRX","TPS vs NPS","SCN2_NN_TPS vs SCN2_NN_NPS",false,false,false,false,false,false,false,false,false,false,false,false,false,false,false,false,{"$f":"COUNTIF(D68:S68,TRUE)","v":0}]
["PRX","TPS vs RPM","SCN2_NN_TPS vs SCN2_NN_RPM",false,false,false,false,false,false,false,false,false,false,false,false,false,false,false,false,{"$f":"COUNTIF(D69:S69,TRUE)","v":0}]
["PRX","TPS vs RPH","SCN2_NN_TPS vs SCN2_NN_RPH",false,false,false,false,false,false,false,false,false,false,false,false,false,false,false,false,{"$f":"COUNTIF(D70:S70,TRUE)","v":0}]
["SCN","SCN2 vs SCN3","SCN2_CN_RPM vs SCN3_CN_RPM",true,true,true,true,true,false,true,true,false,true,true,true,false,false,true,true,{"$f":"COUNTIF(D71:S71,TRUE)","v":12}]
["SCN","SCN2 vs SCN3","SCN2_CN_RPH vs SCN3_CN_RPH",false,false,false,false,false,false,false,true,false,false,true,true,false,false,true,true,{"$f":"COUNTIF(D72:S72,TRUE)","v":5}]
["PRX","RPM vs RPH","SCN2_NN_RPM vs SCN2_NN_RPH",false,false,false,false,false,false,false,false,false,false,false,false,false,false,false,false,{"$f":"COUNTIF(D73:S73,TRUE)","v":0}]
["PRX","TPS vs NPS","SCN3_CD_TPS vs SCN3_CD_NPS",false,false,false,false,false,false,false,false,false,false,false,false,false,false,false,false,{"$f":"COUNTIF(D74:S74,TRUE)","v":0}]
["PRX","TPS vs RPM","SCN3_CD_TPS vs SCN3_CD_RPM",false,false,false,false,false,false,false,false,false,false,false,false,false,false,false,false,{"$f":"COUNTIF(D75:S75,TRUE)","v":0}]
["SCN","SCN2 vs SCN3","SCN2_NN_TPS vs SCN3_NN_TPS",false,false,false,false,false,true,true,true,false,true,true,true,false,false,true,true,{"$f":"COUNTIF(D76:S76,TRUE)","v":8}]
["SCN","SCN2 vs SCN3","SCN2_NN_NPS vs SCN3_NN_NPS",false,false,false,false,false,false,false,true,false,false,true,true,false,false,true,true,{"$f":"COUNTIF(D77:S77,TRUE)","v":5}]
["SCN","SCN2 vs SCN3","SCN2_NN_RPM vs SCN3_NN_RPM",false,false,false,true,false,false,false,true,false,false,true,true,false,false,true,true,{"$f":"COUNTIF(D78:S78,TRUE)","v":6}]
["PRX","RPM vs RPH","SCN3_CD_RPM vs SCN3_CD_RPH",false,false,false,false,false,false,false,false,false,false,false,false,false,false,false,false,{"$f":"COUNTIF(D79:S79,TRUE)","v":0}]
["SCN","SCN2 vs SCN3","SCN2_NN_RPH vs SCN3_NN_RPH",false,false,false,false,false,false,false,false,false,false,true,false,false,false,true,true,{"$f":"COUNTIF(D80:S80,TRUE)","v":3}]
["PRX","TPS vs RPM","SCN3_CN_TPS vs SCN3_CN_RPM",false,false,false,false,false,false,false,false,false,false,false,false,false,false,false,false,{"$f":"COUNTIF(D81:S81,TRUE)","v":0}]
["PRX","TPS vs NPS","SCN1_CD_TPS vs SCN1_CD_NPS",false,false,false,true,false,false,false,false,false,false,false,false,false,false,false,false,{"$f":"COUNTIF(D82:S82,TRUE)","v":1}]
["PRX","TPS vs NPS","SCN3_CN_TPS vs SCN3_CN_NPS",false,false,false,true,false,false,false,false,false,false,false,false,false,false,false,false,{"$f":"COUNTIF(D83:S83,TRUE)","v":1}]
["PRX","TPS vs RPH","SCN1_CD_TPS vs SCN1_CD_RPH",false,false,false,true,true,false,false,false,false,false,false,false,true,false,false,false,{"$f":"COUNTIF(D84:S84,TRUE)","v":3}]
["PRX","RPM vs RPH","SCN3_CN_RPM vs SCN3_CN_RPH",false,false,false,false,false,false,false,false,false,false,false,false,false,false,false,false,{"$f":"COUNTIF(D85:S85,TRUE)","v":0}]
["PRX","TPS vs NPS","SCN3_NN_TPS vs SCN3_NN_NPS",false,false,false,false,false,false,false,false,false,false,false,false,false,false,false,false,{"$f":"COUNTIF(D86:S86,TRUE)","v":0}]
["PRX","TPS vs RPM","SCN3_NN_TPS vs SCN3_NN_RPM",false,false,false,false,false,false,false,false,false,false,false,false,false,false,false,false,{"$f":"COUNTIF(D87:S87,TRUE)","v":0}]
["PRX","TPS vs RPH","SCN3_NN_TPS vs SCN3_NN_RPH",false,false,false,false,false,false,false,false,false,false,false,false,false,false,false,false,{"$f":"COUNTIF(D88:S88,TRUE)","v":0}]
["PRX","TPS vs RPH","SCN3_CD_TPS vs SCN3_CD_RPH",false,false,false,false,false,false,false,false,true,false,false,false,false,false,false,false,{"$f":"COUNTIF(D89:S89,TRUE)","v":1}]
["PRX","TPS vs RPH","SCN3_CN_TPS vs SCN3_CN_RPH",false,false,false,true,false,false,false,false,false,false,false,false,false,false,false,false,{"$f":"COUNTIF(D90:S90,TRUE)","v":1}]
["PRX","RPM vs RPH","SCN3_NN_RPM vs SCN3_NN_RPH",false,false,false,false,false,false,false,false,false,false,false,false,false,false,false,false,{"$f":"COUNTIF(D91:S91,TRUE)","v":0}]
["LNS","symCN vs symCD","SCN1_CD_TPS vs SCN1_CN_TPS",false,false,false,false,false,false,false,false,false,false,false,false,false,false,false,false,0]
["LNS","symCN vs NN","SCN1_CD_TPS vs SCN1_NN_TPS",false,false,false,false,false,false,false,false,false,false,false,false,false,false,false,false,0]
["LNS","symCN vs symCD","SCN1_CD_NPS vs SCN1_CN_NPS",false,false,false,false,false,false,false,false,false,false,false,false,false,false,false,false,0]
["LNS","symCN vs NN","SCN1_CD_NPS vs SCN1_NN_NPS",false,false,false,false,false,false,false,false,false,false,false,false,false,false,false,false,0]
["LNS","symCN vs symCD","SCN1_CD_RPM vs SCN1_CN_RPM",false,false,false,false,false,false,false,false,false,false,false,false,false,false,false,false,0]
["LNS","symCN vs NN","SCN1_CD_RPM vs SCN1_NN_RPM",false,false,false,false,false,false,false,false,false,false,false,false,false,false,false,false,0]
["LNS","symCN vs symCD","SCN1_CD_RPH vs SCN1_CN_RPH",false,false,false,false,false,false,false,false,false,false,false,false,false,false,false,false,0]
["LNS","symCN vs NN","SCN1_CD_RPH vs SCN1_NN_RPH",false,false,false,false,false,false,false,false,false,false,false,false,false,false,false,false,0]
["LNS","symCD vs NN","SCN1_CN_TPS vs SCN1_NN_TPS",false,false,false,false,false,false,false,false,false,false,false,false,false,false,false,false,0]
["LNS","symCD vs NN","SCN1_CN_NPS vs SCN1_NN_NPS",false,false,false,false,false,false,false,false,false,false,false,false,false,false,false,false,0]
["LNS","symCD vs NN","SCN1_CN_RPM vs SCN1_NN_RPM",false,false,false,false,false,false,false,false,false,false,false,false,false,false,false,false,0]
["LNS","symCD vs NN","SCN1_CN_RPH vs SCN1_NN_RPH",false,false,false,false,false,false,false,false,false,false,false,false,false,false,false,false,0]
["LNS","symCN vs symCD","SCN2_CD_TPS vs SCN2_CN_TPS",false,false,false,false,false,false,false,false,false,false,false,false,false,false,false,false,0]
["LNS","symCN vs NN","SCN2_CD_TPS vs SCN2_NN_TPS",false,false,false,false,false,false,false,false,false,false,false,false,false,false,false,false,0]
["LNS","symCN vs symCD","SCN2_CD_NPS vs SCN2_CN_NPS",false,false,false,false,false,false,false,false,false,false,false,false,false,false,false,false,0]
["LNS","symCN vs NN","SCN2_CD_NPS vs SCN2_NN_NPS",false,false,false,false,false,false,false,false,false,false,false,false,false,false,false,false,0]
["LNS","symCN vs symCD","SCN2_CD_RPM vs SCN2_CN_RPM",false,false,false,false,false,false,false,false,false,false,false,false,false,false,false,false,0]
["LNS","symCN vs NN","SCN2_CD_RPM vs SCN2_NN_RPM",false,false,false,false,false,false,false,false,false,false,false,false,false,false,false,false,0]
["LNS","symCN vs symCD","SCN2_CD_RPH vs SCN2_CN_RPH",false,false,false,false,false,false,false,false,false,false,false,false,false,false,false,false,0]
["LNS","symCN vs NN","SCN2_CD_RPH vs SCN2_NN_RPH",false,false,false,false,false,false,false,false,false,false,false,false,false,false,false,false,0]
["LNS","symCD vs NN","SCN2_CN_TPS vs SCN2_NN_TPS",false,false,false,false,false,false,false,false,false,false,false,false,false,false,false,false,0]
["LNS","symCD vs NN","SCN2_CN_NPS vs SCN2_NN_NPS",false,false,false,false,false,false,false,false,false,false,false,false,false,false,false,false,0]
["LNS","symCD vs NN","SCN2_CN_RPM vs SCN2_NN_RPM",false,false,false,false,false,false,false,false,false,false,false,false,false,false,false,false,0]
["LNS","symCD vs NN","SCN2_CN_RPH vs SCN2_NN_RPH",false,false,false,false,false,false,false,false,false,false,false,false,false,false,false,false,0]
["LNS","symCN vs symCD","SCN3_CD_TPS vs SCN3_CN_TPS",false,false,false,false,false,false,false,false,false,false,false,false,false,false,false,false,0]
["LNS","symCN vs NN","SCN3_CD_TPS vs SCN3_NN_TPS",false,false,false,false,false,false,false,false,false,false,false,false,false,false,false,false,0]
["LNS","symCN vs symCD","SCN3_CD_NPS vs SCN3_CN_NPS",false,false,false,false,false,false,false,false,false,false,false,false,false,false,false,false,0]
["LNS","symCN vs NN","SCN3_CD_NPS vs SCN3_NN_NPS",false,false,false,false,false,false,false,false,false,false,false,false,false,false,false,false,0]
["LNS","symCN vs symCD","SCN3_CD_RPM vs SCN3_CN_RPM",false,false,false,false,false,false,false,false,false,false,false,false,false,false,false,false,0]
["LNS","symCN vs NN","SCN3_CD_RPM vs SCN3_NN_RPM",false,false,false,false,false,false,false,false,false,false,false,false,false,false,false,false,0]
["LNS","symCN vs symCD","SCN3_CD_RPH vs SCN3_CN_RPH",false,false,false,false,false,false,false,false,false,false,false,false,false,false,false,false,0]
["LNS","symCN vs NN","SCN3_CD_RPH vs SCN3_NN_RPH",false,false,false,false,false,false,false,false,false,false,false,false,false,false,false,false,0]
["LNS","symCD vs NN","SCN3_CN_TPS vs SCN3_NN_TPS",false,false,false,false,false,false,false,false,false,false,false,false,false,false,false,false,0]
["LNS","symCD vs NN","SCN3_CN_NPS vs SCN3_NN_NPS",false,false,false,false,false,false,false,false,false,false,false,false,false,false,false,false,0]
["LNS","symCD vs NN","SCN3_CN_RPM vs SCN3_NN_RPM",false,false,false,false,false,false,false,false,false,false,false,false,false,false,false,false,0]
["LNS","symCD vs NN","SCN3_CN_RPH vs SCN3_NN_RPH",false,false,false,false,false,false,false,false,false,false,false,false,false,false,false,false,0]
[]
[]
[null,"SCN",null,{"$f":"COUNTIF(D2:D37,TRUE)","v":0},{"$f":"COUNTIF(E2:E37,TRUE)","v":1},9,9,9,0,0,9,7,3,0,1,1,0,0,0]
[null,"PRX",null,{"$f":"COUNTIF(D38:D91,TRUE)","v":2},{"$f":"COUNTIF(E38:E91,TRUE)","v":1},3,6,5,4,8,11,8,7,12,11,3,1,12,12]
[null,"LNS",null,{"$f":"COUNTIF(D92:D127,TRUE)","v":0},{"$f":"COUNTIF(E92:E127,TRUE)","v":0},0,0,0,0,0,0,0,0,0,0,0,0,0,0]
[null,null,null,{"$f":"COUNTIF(D2:D127,TRUE)","v":2},{"$f":"COUNTIF(E2:E127,TRUE)","v":2},12,15,14,4,8,20,15,10,12,12,4,1,12,12]

{"sheet":"Sheet3","index":2,"n_rows":17,"n_cols":19,"rows_kept":17,"cut":false,"hidden":false,"merged":[]}
[null,"Superior_5","Inferior_5","Nasal_5","Temporal_5","Superior_10","Inferior_10","Nasal_10","Temporal_10","Superior_15","Inferior_15","Nasal_15","Temporal_15","Superior_20","Inferior_20","Nasal_20","Temporal_20"]
["SCN"]
["Measured",{"$f":"Asym!D129","v":3},{"$f":"Asym!E129","v":2},{"$f":"Asym!F129","v":4},{"$f":"Asym!G129","v":9},{"$f":"Asym!H129","v":0},{"$f":"Asym!I129","v":3},{"$f":"Asym!J129","v":2},{"$f":"Asym!K129","v":11},{"$f":"Asym!L129","v":4},{"$f":"Asym!M129","v":3},{"$f":"Asym!N129","v":5},{"$f":"Asym!O129","v":11},{"$f":"Asym!P129","v":1},{"$f":"Asym!Q129","v":0},{"$f":"Asym!R129","v":12},{"$f":"Asym!S129","v":12},{"$f":"SUM(B3:Q3)","v":82}]
["Symmetric",{"$f":"Symm!D130","v":0},{"$f":"Symm!E130","v":1},{"$f":"Symm!F130","v":9},{"$f":"Symm!G130","v":9},{"$f":"Symm!H130","v":9},{"$f":"Symm!I130","v":0},{"$f":"Symm!J130","v":0},{"$f":"Symm!K130","v":9},{"$f":"Symm!L130","v":7},{"$f":"Symm!M130","v":3},{"$f":"Symm!N130","v":0},{"$f":"Symm!O130","v":1},{"$f":"Symm!P130","v":1},{"$f":"Symm!Q130","v":0},{"$f":"Symm!R130","v":0},{"$f":"Symm!S130","v":0},{"$f":"SUM(B4:Q4)","v":49}]
[null,{"$f":"B3-B4","v":3},{"$f":"C3-C4","v":1},-5,0,-9,3,2,2,-3,0,5,10,0,0,12,12,33]
["LENS"]
["Measured",{"$f":"Asym!D131","v":0},{"$f":"Asym!E131","v":0},{"$f":"Asym!F131","v":0},{"$f":"Asym!G131","v":0},{"$f":"Asym!H131","v":0},{"$f":"Asym!I131","v":2},{"$f":"Asym!J131","v":3},{"$f":"Asym!K131","v":0},{"$f":"Asym!L131","v":0},{"$f":"Asym!M131","v":5},{"$f":"Asym!N131","v":3},{"$f":"Asym!O131","v":0},{"$f":"Asym!P131","v":0},{"$f":"Asym!Q131","v":0},{"$f":"Asym!R131","v":0},{"$f":"Asym!S131","v":0},13,"Asymmetric CL profiles makes lens less effective promoting statistical changes in defocus under diff environments and prx."]
["Symmetric",{"$f":"Symm!D132","v":0},{"$f":"Symm!E132","v":0},{"$f":"Symm!F132","v":0},{"$f":"Symm!G132","v":0},{"$f":"Symm!H132","v":0},{"$f":"Symm!I132","v":0},{"$f":"Symm!J132","v":0},{"$f":"Symm!K132","v":0},{"$f":"Symm!L132","v":0},{"$f":"Symm!M132","v":0},{"$f":"Symm!N132","v":0},{"$f":"Symm!O132","v":0},{"$f":"Symm!P132","v":0},{"$f":"Symm!Q132","v":0},{"$f":"Symm!R132","v":0},{"$f":"Symm!S132","v":0},0]
[null,{"$f":"B7-B8","v":0},{"$f":"C7-C8","v":0},0,0,0,2,3,0,0,5,3,0,0,0,0,0,13]
["PRX"]
["Measured",{"$f":"Asym!D130","v":0},{"$f":"Asym!E130","v":1},{"$f":"Asym!F130","v":9},{"$f":"Asym!G130","v":9},{"$f":"Asym!H130","v":9},{"$f":"Asym!I130","v":0},{"$f":"Asym!J130","v":0},{"$f":"Asym!K130","v":9},{"$f":"Asym!L130","v":8},{"$f":"Asym!M130","v":2},{"$f":"Asym!N130","v":0},{"$f":"Asym!O130","v":0},{"$f":"Asym!P130","v":1},{"$f":"Asym!Q130","v":0},{"$f":"Asym!R130","v":0},{"$f":"Asym!S130","v":0},48]
["Symmetric",{"$f":"Symm!D131","v":2},{"$f":"Symm!E131","v":1},{"$f":"Symm!F131","v":3},{"$f":"Symm!G131","v":6},{"$f":"Symm!H131","v":5},{"$f":"Symm!I131","v":4},{"$f":"Symm!J131","v":8},{"$f":"Symm!K131","v":11},{"$f":"Symm!L131","v":8},{"$f":"Symm!M131","v":7},{"$f":"Symm!N131","v":12},{"$f":"Symm!O131","v":11},{"$f":"Symm!P131","v":3},{"$f":"Symm!Q131","v":1},{"$f":"Symm!R131","v":12},{"$f":"Symm!S131","v":12},106]
[null,{"$f":"B11-B12","v":-2},{"$f":"C11-C12","v":0},6,3,4,-4,-8,-2,0,-5,-12,-11,-2,-1,-12,-12,-58]
["TOTAL"]
["Measured",{"$f":"Asym!D132","v":3},{"$f":"Asym!E132","v":3},{"$f":"Asym!F132","v":13},{"$f":"Asym!G132","v":18},{"$f":"Asym!H132","v":9},{"$f":"Asym!I132","v":5},{"$f":"Asym!J132","v":5},{"$f":"Asym!K132","v":20},{"$f":"Asym!L132","v":12},{"$f":"Asym!M132","v":10},{"$f":"Asym!N132","v":8},{"$f":"Asym!O132","v":11},{"$f":"Asym!P132","v":2},{"$f":"Asym!Q132","v":0},{"$f":"Asym!R132","v":12},{"$f":"Asym!S132","v":12},143,"number of no significance difference, so no changed"]
["Symmetric",{"$f":"Symm!D133","v":2},{"$f":"Symm!E133","v":2},{"$f":"Symm!F133","v":12},{"$f":"Symm!G133","v":15},{"$f":"Symm!H133","v":14},{"$f":"Symm!I133","v":4},{"$f":"Symm!J133","v":8},{"$f":"Symm!K133","v":20},{"$f":"Symm!L133","v":15},{"$f":"Symm!M133","v":10},{"$f":"Symm!N133","v":12},{"$f":"Symm!O133","v":12},{"$f":"Symm!P133","v":4},{"$f":"Symm!Q133","v":1},{"$f":"Symm!R133","v":12},{"$f":"Symm!S133","v":12},155]
[null,{"$f":"B15-B16","v":1},{"$f":"C15-C16","v":1},1,3,-5,1,-3,0,-3,0,-4,-1,-2,-1,0,0,-12]